fUST/lending_fUST_20251106
["ID","MTS","AMOUNT","RATE_DAILY","PERIOD"]
[393244235,1762373446456,-264.61840118,0.00020824,2]
[393244236,1762373446466,-309.62630516,0.00021218,2]
[393244237,1762373446475,-329.0,0.00021297,2]
[393244238,1762373446484,-150.0,0.00021318,2]
[393244239,1762373446494,-411.0,0.00021538,2]
[393244240,1762373446503,-947.96,0.00022011,2]
[393244241,1762373446513,-295.54782469,0.00022824,2]
[393244242,1762373446522,-1000.0,0.00022872,20]
[393244243,1762373446531,-1105.95,0.00023386,2]
[393244244,1762373446541,-749.4,0.000237,7]
[393244245,1762373446551,-1207.46341149,0.00024015,2]
[393244246,1762373446560,-1207.46341148,0.00024276,2]
[393244247,1762373446569,-1207.46341148,0.00024537,2]
[393244248,1762373446579,-1263.95,0.00024762,2]
[393244249,1762373446588,-1207.46341148,0.00024798,2]
[393244250,1762373446597,-326.4772482,0.00024824,2]
[393244251,1762373446611,-500.0,0.00024873,2]
[393244252,1762373446620,-160.0,0.000249,7]
[393244253,1762373446629,-14337.1044745,0.000249,2]
[393244254,1762373446638,-1207.46341148,0.00025059,2]
[393244255,1762373446648,-1000.0,0.00025159,20]
[393244256,1762373446658,-244.0,0.00025159,20]
[393244257,1762373446667,-202.45284995,0.00025274,7]
[393244258,1762373446677,-225.78264881,0.00025421,2]
[393244259,1762373446687,-309.62630509,0.00025958,2]
[393244260,1762373446696,-1421.94,0.00026138,2]
[393244261,1762373446705,-303.64750197,0.00026436,7]
[393244262,1762373446715,-920.742236,0.00026676,2]
[393244263,1762373446724,-357.40667172,0.00026824,2]
[393244264,1762373446734,-1579.93,0.00027513,2]
[393244265,1762373446743,-1000.0,0.00027675,30]
[393244266,1762373446753,-492.0,0.00027675,30]
[393244267,1762373446764,-2723.1,0.000277,2]
[393244268,1762373446774,-172.0,0.00028521,14]
[393244269,1762373446783,-388.33609523,0.00028824,2]
[393244270,1762373446793,-1000.0,0.00030442,30]
[393244271,1762373446802,-791.0,0.00030442,30]
[393244272,1762373446812,-210.503,0.00030589,26]
[393244273,1762373446821,-7168.55223726,0.0003069,2]
[393244274,1762373446830,-309.62630509,0.00030699,2]
[393244275,1762373446839,-749.4,0.000307,7]
[393244276,1762373446849,-419.26551875,0.00030824,2]
[393244277,1762373446858,-170.0,0.0003126,45]
[393244278,1762373446868,-652.73478829,0.00032276,7]
[393244279,1762373446877,-500.0,0.000327,5]
[393244280,1762373446887,-2723.1,0.000327,2]
[393244281,1762373446896,-179.89206476,0.00032767,9]
[393244282,1762373446905,-450.19494226,0.00032824,2]
[393244283,1762373446914,-500.0,0.00032876,2]
[393244284,1762373446923,-1000.0,0.00032876,2]
[393244285,1762373446932,-920.742236,0.00033165,2]
[393244286,1762373446942,-246.88804607,0.000332,117]
[393244287,1762373446951,-1000.0,0.00033248,5]
[393244288,1762373446961,-15827.33,0.000333,14]
[393244289,1762373446970,-500.0,0.00033424,2]
[393244290,1762373446980,-1000.0,0.00033424,2]
[393244291,1762373446990,-1000.0,0.00033487,30]
[393244292,1762373446999,-1000.0,0.00033487,30]
[393244293,1762373447009,-1500.0,0.00033796,5]
[393244294,1762373447018,-500.0,0.00033825,7]
[393244295,1762373447029,-500.0,0.00033972,2]
[393244296,1762373447039,-1000.0,0.00033972,2]
[393244297,1762373447047,-500.0,0.00034121,7]
[393244298,1762373447055,-895.41080317,0.00034191,7]
[393244299,1762373447064,-1589.00055022,0.00034344,5]
[393244300,1762373447073,-500.0,0.0003452,2]
[393244301,1762373447082,-846.32462431,0.0003452,2]
[393244302,1762373447091,-7168.55223726,0.0003469,2]
[393244303,1762373447100,-378.42,0.000347,30]
[393244304,1762373447110,-481.12436577,0.00034824,120]
[393244305,1762373447119,-1118.52052147,0.00034865,2]
[393244306,1762373447128,-500.0,0.00035068,2]
[393244307,1762373447137,-2723.1,0.000351,14]
[393244308,1762373447147,-15827.33,0.000352,14]
[393244309,1762373447156,-749.4,0.000353,7]
[393244310,1762373447166,-1118.52052147,0.00035329,2]
[393244311,1762373447175,-309.62630509,0.00035439,2]
[393244312,1762373447184,-1118.52052147,0.00035539,2]
[393244313,1762373447193,-500.0,0.00035616,2]
[393244314,1762373447203,-1118.52052147,0.0003564,2]
[393244315,1762373447212,-1200.0,0.00035936,7]
[393244316,1762373447221,-11735.16350734,0.0003599,2]
[393244317,1762373447232,-174.0,0.00036,30]
[393244318,1762373447241,-1118.52052147,0.00036052,2]
[393244319,1762373447250,-378.42,0.000361,30]
[393244320,1762373447259,-500.0,0.00036164,2]
[393244321,1762373447268,-1118.52052147,0.00036219,2]
[393244322,1762373447279,-788.5999956,0.00036299,30]
[393244323,1762373447288,-160.0,0.00036442,3]
[393244324,1762373447298,-1118.52052149,0.00036547,2]
[393244325,1762373447307,-500.0,0.00036712,2]
[393244326,1762373447317,-157.0,0.0003674,92]
[393244327,1762373447326,-1200.0,0.00036758,7]
[393244328,1762373447336,-179.21640581,0.000368,2]
[393244329,1762373447346,-512.05378929,0.00036824,120]
[393244330,1762373447356,-1000.0,0.00036835,30]
[393244331,1762373447365,-1000.0,0.00036835,30]
[393244332,1762373447375,-579.0,0.00036835,30]
[393244333,1762373447386,-502.53547799,0.00036873,5]
[393244334,1762373447396,-7168.55223726,0.0003688,3]
[393244335,1762373447405,-100359.731322,0.0003689,3]
[393244336,1762373447414,-665465.35229953,0.000369,2]
[393244360,1762373884856,150.0,0.00014255,2]
[393244362,1762373963931,150.0,0.00014088,2]
[393244363,1762374039617,150.0,0.0001441,2]
[393244364,1762374055376,150.0,0.00032877,120]
[393244382,1762374506525,1000.0,0.0001,2]
[393244422,1762374621234,210.0,0.00032877,120]
[393244444,1762374635530,-150.0,0.00015578,2]
[393244445,1762374635540,-150.0,0.00016935,2]
[393244446,1762374635549,-211.4954251,0.00017113,2]
[393244447,1762374635559,-177.0,0.00017578,2]
[393244448,1762374635569,-908.62548404,0.00017688,2]
[393244449,1762374635579,-3337.70955467,0.00018,2]
[393244450,1762374635588,-771.5103816,0.00018013,2]
[393244451,1762374635598,-300.0,0.000183,2]
[393244452,1762374635607,-591.0,0.000183,2]
[393244453,1762374635616,-207.84294615,0.000183,2]
[393244454,1762374635626,-178.07935508,0.000183,2]
[393244455,1762374635634,-5373.03685337,0.00018301,2]
[393244456,1762374635646,-6702.18620284,0.00018301,2]
[393244457,1762374635656,-582.24090669,0.00018473,2]
[393244458,1762374635665,-150.0,0.00018474,2]
[393244460,1762374635674,-500.0,0.00018495,2]
[393244462,1762374635682,-500.0,0.00018495,2]
[393244464,1762374635691,-50000.0,0.00018495,2]
[393244465,1762374635700,-1134.62586,0.0001856,2]
[393244467,1762374635709,-500.0,0.00019178,2]
[393244468,1762374635718,-500.0,0.00019178,2]
[393244470,1762374635727,-500.0,0.00019178,2]
[393244472,1762374635736,-500.0,0.00019178,2]
[393244474,1762374635745,-255.10549371,0.00019178,2]
[393244475,1762374635755,-705.69982363,0.0001925,2]
[393244477,1762374635764,-204.0,0.00019578,2]
[393244479,1762374635773,-412.0,0.00019752,2]
[393244480,1762374635782,-420.0,0.00019961,2]
[393244482,1762374635791,-196.95000197,0.0002,2]
[393244483,1762374635800,-159.38,0.00020014,2]
[393244485,1762374635809,-500.0,0.00020892,2]
[393244487,1762374635818,-705.69982363,0.00020893,3]
[393244488,1762374635827,-212.5,0.00021553,2]
[393244490,1762374635837,-231.0,0.00021578,2]
[393244492,1762374635845,-705.69982363,0.00022535,4]
[393244494,1762374635856,-399.56292103,0.00022728,2]
[393244495,1762374635865,-160.0,0.00022728,2]
[393244497,1762374635873,-412.0,0.00022752,2]
[393244500,1762374635883,-265.63,0.00023093,2]
[393244503,1762374635891,-214.6737108,0.00023322,2]
[393244504,1762374635900,-160.0,0.00023415,2]
[393244505,1762374635911,-258.0,0.00023578,2]
[393244506,1762374635920,-260.0,0.00023963,2]
[393244507,1762374635930,-500.0,0.00024177,5]
[393244508,1762374635941,-705.69982363,0.00024177,5]
[393244509,1762374635950,-512.14372084,0.00024451,5]
[393244510,1762374635961,-360.0,0.00024511,2]
[393244511,1762374635970,-318.75,0.00024632,2]
[393244512,1762374635981,-510.52850827,0.0002465,2]
[393244513,1762374635991,-35681.47324887,0.0002465,2]
[393244514,1762374636000,-200.0,0.00024658,2]
[393244515,1762374636015,-524.58,0.000247,7]
[393244516,1762374636024,-460.0,0.00025059,2]
[393244517,1762374636034,-504.0,0.00025139,2]
[393244518,1762374636043,-504.0,0.00025278,2]
[393244519,1762374636055,-504.0,0.00025325,2]
[393244520,1762374636065,-504.0,0.00025455,2]
[393244521,1762374636076,-507.0,0.00025494,2]
[393244522,1762374636086,-504.0,0.00025518,2]
[393244523,1762374636095,-285.0,0.00025578,2]
[393244524,1762374636104,-560.0,0.00025607,2]
[393244525,1762374636113,-412.0,0.00025752,2]
[393244526,1762374636122,-706.40552345,0.0002582,7]
[393244527,1762374636131,-504.0,0.00025845,2]
[393244528,1762374636142,-504.0,0.00025933,2]
[393244529,1762374636151,-504.0,0.0002599,2]
[393244530,1762374636160,-507.0,0.00026023,2]
[393244531,1762374636169,-660.0,0.00026155,2]
[393244532,1762374636178,-371.88,0.00026172,2]
[393244533,1762374636187,-504.0,0.00026623,2]
[393244534,1762374636196,-507.0,0.00026633,7]
[393244535,1762374636204,-504.0,0.000267,2]
[393244536,1762374636214,-760.0,0.00026703,2]
[393244537,1762374636223,-500.0,0.0002672,2]
[393244538,1762374636232,-504.0,0.00026727,7]
[393244539,1762374636242,-504.0,0.00026738,2]
[393244540,1762374636252,-500.0,0.000268,2]
[393244541,1762374636263,-500.0,0.000268,2]
[393244542,1762374636272,-504.0,0.00026866,2]
[393244543,1762374636281,-504.0,0.00026888,2]
[393244544,1762374636290,-524.58,0.000269,7]
[393244545,1762374636299,-504.0,0.00027119,2]
[393244546,1762374636308,-504.0,0.00027183,2]
[393244547,1762374636318,-860.0,0.00027251,2]
[393244548,1762374636327,-504.0,0.00027273,2]
[393244549,1762374636336,-507.0,0.00027303,2]
[393244550,1762374636345,-3577.21688858,0.00027328,2]
[393244551,1762374636354,-15840.51091846,0.00027338,2]
[393244552,1762374636366,-1141.40440876,0.00027338,2]
[393244553,1762374636376,-341.3187326,0.00027338,2]
[393244554,1762374636387,-392.02232525,0.00027338,2]
[393244566,1762374637745,-23197.61664043,0.00027338,2]
[393244567,1762374637756,-822.42279838,0.00027338,2]
[393244568,1762374637767,-645.04527772,0.00027338,2]
[393244569,1762374637778,-1049.11911392,0.00027338,2]
[393244570,1762374637790,-2477.74752223,0.00027338,2]
[393244601,1762374639907,-375.48945293,0.00025923,2]
[393244603,1762374639917,-4024.66272581,0.00027338,2]
[393244903,1762374643025,-44105.49357703,0.00027338,2]
[393244977,1762374646231,-160.0,0.00018495,2]
[393244978,1762374646241,-303.58193923,0.0002473,2]
[393244979,1762374646250,-1622.71806077,0.00027338,2]
[393244980,1762374646286,-30027.63137795,0.00027338,2]
[393245038,1762374848058,5000.0,0.000191,9]
[393245039,1762374856196,5000.0,0.000191,9]
[393245048,1762375006715,200550.36005972,0.00032,120]
[393245125,1762375832156,-150.0,0.00016738,2]
[393245127,1762375832166,-285.95221051,0.0001703,2]
[393245128,1762375832176,-150.0,0.0001713,2]
[393245131,1762375832187,-238.0,0.00018255,2]
[393245132,1762375832201,-150.0,0.0001826,2]
[393245134,1762375832212,-177.0,0.0001913,2]
[393245136,1762375832223,-4913.6860349,0.00019653,2]
[393245138,1762375832234,-150.0,0.00019781,2]
[393245140,1762375832244,-160.0,0.00019959,2]
[393245142,1762375832255,-399.56292103,0.00020847,2]
[393245144,1762375832265,-154.81315258,0.00020894,2]
[393245146,1762375832275,-300.0,0.00020989,2]
[393245147,1762375832287,-19718.63291297,0.00020991,2]
[393245148,1762375832298,-500.0,0.00020994,2]
[393245149,1762375832309,-412.0,0.00020998,2]
[393245150,1762375832320,-500.08489363,0.00021,2]
[393245151,1762375832332,-204.0,0.0002113,2]
[393245152,1762375832342,-796.8567733,0.0002122,2]
[393245153,1762375832353,-150.0,0.00021303,2]
[393245154,1762375832364,-494.76135564,0.00021547,2]
[393245155,1762375832377,-733.6295663,0.00022034,2]
[393245156,1762375832388,-162.02,0.00022824,2]
[393245157,1762375832398,-420.0,0.00022832,2]
[393245158,1762375832409,-231.0,0.0002313,2]
[393245159,1762375832419,-154.81315254,0.00023266,2]
[393245160,1762375832430,-412.0,0.00023998,2]
[393245161,1762375832441,-194.42,0.00024346,2]
[393245162,1762375832451,-380.0,0.00024658,2]
[393245163,1762375832464,-587.0,0.00024836,2]
[393245164,1762375832475,-782.1745761,0.000251,2]
[393245165,1762375832485,-258.0,0.0002513,2]
[393245166,1762375832496,-154.81315254,0.00025639,2]
[393245167,1762375832506,-226.82,0.00025868,2]
[393245168,1762375832517,-2308.2639317,0.00026264,2]
[393245169,1762375832529,-533.48315617,0.00026898,2]
[393245170,1762375832540,-412.0,0.00026998,2]
[393245171,1762375832551,-823.0,0.00027016,2]
[393245172,1762375832562,-285.0,0.0002713,2]
[393245173,1762375832572,-1163.2856716,0.00027203,2]
[393245174,1762375832583,-160.0,0.00027286,2]
[393245175,1762375832593,-259.23,0.00027389,2]
[393245176,1762375832602,-533.48315617,0.00027399,2]
[393245177,1762375832613,-504.0,0.00027421,2]
[393245178,1762375832624,-507.0,0.00027465,2]
[393245179,1762375832634,-504.0,0.00027475,2]
[393245180,1762375832644,-504.0,0.00027591,2]
[393245181,1762375832656,-1134.62586,0.0002784,2]
[393245182,1762375832666,-537.13079093,0.0002788,2]
[393245183,1762375832676,-533.48315617,0.000279,2]
[393245184,1762375832687,-500.0,0.00027973,4]
[393245185,1762375832698,-500.0,0.00027973,5]
[393245186,1762375832707,-500.0,0.00027973,5]
[393245187,1762375832718,-500.0,0.00027973,5]
[393245188,1762375832729,-500.0,0.00027973,5]
[393245189,1762375832740,-33775.40852038,0.0002798,2]
[393245190,1762375832753,-1810.54911172,0.0002798,2]
[393245191,1762375832765,-94930.3543459,0.0002798,2]
[393245192,1762375832776,-1609.74759986,0.0002798,2]
[393245193,1762375832786,-71583.9647,0.0002799,2]
[393245194,1762375832797,-419.66,0.00028,7]
[393245195,1762375832808,-154.81315254,0.00028011,2]
[393245196,1762375832819,-537.13079091,0.00028078,2]
[393245197,1762375832831,-537.13079091,0.00028275,2]
[393245198,1762375832844,-537.13079091,0.00028473,2]
[393245199,1762375832854,-110818.72365918,0.0002849,2]
[393245204,1762375838010,-307.8364998,0.0002849,2]
[393245213,1762375840193,-500.0,0.00020989,2]
[393245214,1762375840207,-46.75,0.00020989,2]
[393245215,1762375840250,-453.25,0.00020989,2]
[393245216,1762375840261,-500.0,0.00020989,2]
[393245217,1762375840270,-500.0,0.00020989,2]
[393245218,1762375840280,-500.0,0.00020989,2]
[393245219,1762375840290,-500.0,0.00020989,2]
[393245220,1762375840300,-500.0,0.00020989,2]
[393245221,1762375840311,-204.47813064,0.00020989,2]
[393245222,1762375840320,-500.0,0.00020989,2]
[393245223,1762375840330,-500.0,0.00020989,2]
[393245224,1762375840340,-500.0,0.00020989,2]
[393245225,1762375840350,-10747.88032414,0.0002849,2]
[393245226,1762375840362,-8641.87149488,0.0002849,2]
[393245227,1762375840372,-1609.74759986,0.0002849,2]
[393245228,1762375840382,-12661.87,0.000285,7]
[393245229,1762375840392,-399.56292103,0.000285,7]
[393245230,1762375840402,-302.74,0.000285,14]
[393245231,1762375840413,-160.0,0.000285,7]
[393245232,1762375840423,-1000.0,0.00028521,5]
[393245233,1762375840433,-1000.0,0.00028521,5]
[393245234,1762375840444,-1000.0,0.00028521,5]
[393245235,1762375840454,-1000.0,0.00028521,5]
[393245236,1762375840467,-537.13079091,0.0002867,2]
[393245238,1762375840476,-500.0,0.00028873,5]
[393245240,1762375840486,-71805.01775659,0.0002888,2]
[393245242,1762375840499,-7629.59578289,0.0002888,2]
[393245259,1762375840511,-60302.03906251,0.0002888,2]
[393245262,1762375840664,-10507.0,0.0002888,2]
[393245568,1762375846636,-190.3970847,0.00020779,9]
[393245569,1762375846647,-500.0,0.00020989,2]
[393245570,1762375846657,-500.0,0.00020989,2]
[393245571,1762375846668,-500.0,0.00020989,2]
[393245572,1762375846677,-384.8029153,0.00020989,2]
[393245573,1762375846689,-115.1970847,0.00020989,2]
[393245574,1762375846699,-204.47813064,0.00020989,2]
[393245575,1762375846708,-250.56727708,0.00020989,2]
[393245576,1762375846716,-500.0,0.00020989,2]
[393245577,1762375846725,-500.0,0.00020989,2]
[393245578,1762375846735,-500.0,0.00020989,2]
[393245579,1762375846744,-500.0,0.00020989,2]
[393245580,1762375846755,-500.0,0.00020989,2]
[393245581,1762375846765,-14501.9892762,0.0002888,2]
[393245582,1762375846776,-3494.32624969,0.0002888,2]
[393245583,1762375846788,-1039.996,0.0002888,2]
[393245616,1762376223967,4287.04990993,0.000191,9]
[393245645,1762376466532,757.532247,0.00013699,2]
[393246013,1762377041348,-150.0,0.0001905,2]
[393246014,1762377041357,-150.0,0.00019242,2]
[393246015,1762377041367,-272.0,0.00019582,2]
[393246016,1762377041376,-757.532247,0.00020187,2]
[393246017,1762377041385,-177.0,0.00021242,2]
[393246018,1762377041394,-399.56292103,0.00022,2]
[393246019,1762377041403,-160.0,0.00022012,2]
[393246020,1762377041412,-4065.80820708,0.00022223,2]
[393246021,1762377041424,-1978.01909202,0.00022223,2]
[393246022,1762377041433,-500.0,0.00023239,2]
[393246023,1762377041443,-373.79721721,0.00023239,2]
[393246024,1762377041454,-300.0,0.0002324,2]
[393246025,1762377041464,-204.0,0.00023242,2]
[393246026,1762377041473,-242.3469227,0.00023524,2]
[393246027,1762377041481,-150.0,0.00023684,2]
[393246028,1762377041490,-160.0,0.00024119,2]
[393246029,1762377041498,-24297.9030501,0.00024172,2]
[393246030,1762377041508,-154.81315254,0.00024234,2]
[393246031,1762377041517,-201.93286099,0.00024319,2]
[393246032,1762377041526,-2137.3601738,0.00024334,2]
[393246033,1762377041535,-209.40437684,0.00024867,2]
[393246034,1762377041544,-420.0,0.00025222,2]
[393246035,1762377041553,-231.0,0.00025242,2]
[393246036,1762377041562,-217.15233878,0.00025415,2]
[393246037,1762377041571,-150.0,0.00025837,2]
[393246038,1762377041580,-247.64155688,0.00025963,2]
[393246039,1762377041590,-757.532247,0.00026676,2]
[393246040,1762377041599,-258.0,0.00027242,2]
[393246041,1762377041608,-210.935,0.00027583,17]
[393246042,1762377041617,-584.09102449,0.0002767,2]
[393246043,1762377041626,-1051.36384408,0.0002767,2]
[393246044,1762377041635,-150.0,0.0002799,2]
[393246045,1762377041644,-1869.09127837,0.00028262,2]
[393246046,1762377041654,-2920.45512245,0.00028262,2]
[393246047,1762377041662,-4201.24992096,0.00028262,2]
[393246048,1762377041671,-452.11849475,0.00028262,2]
[393246049,1762377041680,-813.81329055,0.00028262,2]
[393246050,1762377041689,-1446.77918319,0.00028262,2]
[393246051,1762377041698,-2258.33188126,0.00028262,2]
[393246052,1762377041707,-677.96510184,0.00028455,2]
[393246062,1762377043538,-194.49915186,0.00028455,2]
[393246063,1762377043547,-27461.48056789,0.0002855,2]
[393246075,1762377046627,-1283.15467251,0.0002855,2]
[393246215,1762378143000,1644.99,0.00014673,2]
[393246373,1762378236585,-150.0,0.000192,2]
[393246374,1762378236594,-150.0,0.00019394,2]
[393246375,1762378236605,-267.0,0.00019394,2]
[393246376,1762378236615,-330.12991417,0.000195,2]
[393246377,1762378236624,-150.0,0.00019878,9]
[393246378,1762378236633,-150.0,0.00020778,20]
[393246379,1762378236642,-177.0,0.00021394,2]
[393246380,1762378236651,-412.0,0.0002253,2]
[393246381,1762378236660,-160.0,0.00022581,2]
[393246382,1762378236669,-399.56292103,0.00023213,2]
[393246383,1762378236679,-204.0,0.00023394,2]
[393246384,1762378236688,-1000.0,0.00024083,30]
[393246386,1762378236698,-300.0,0.00024942,2]
[393246388,1762378236707,-500.0,0.000251,2]
[393246389,1762378236716,-150.0,0.00025115,2]
[393246390,1762378236724,-179.76753054,0.00025133,2]
[393246391,1762378236733,-500.0,0.00025133,2]
[393246392,1762378236742,-500.0,0.00025133,2]
[393246393,1762378236751,-500.0,0.00025133,2]
[393246394,1762378236760,-500.0,0.00025133,2]
[393246395,1762378236769,-238.94485031,0.00025133,2]
[393246396,1762378236778,-357.32627381,0.00025134,2]
[393246397,1762378236787,-1429.30509522,0.00025134,2]
[393246398,1762378236796,-3215.93646426,0.00025134,2]
[393246399,1762378236805,-468.07561809,0.00025134,2]
[393246400,1762378236814,-808.43536346,0.00025134,2]
[393246418,1762378238249,-550.9,0.00025134,2]
[393246631,1762378646074,5000.0,0.000191,9]
[393246655,1762378668858,5000.0,0.000191,9]
[393246657,1762378691286,5000.0,0.000191,9]
[393246677,1762379259066,1544.57,0.00032877,120]
[393246683,1762379373995,643.902409,0.00013699,2]
[393246704,1762379432709,-253.0,0.0001849,2]
[393246705,1762379432718,-150.0,0.00018678,2]
[393246707,1762379432728,-253.0,0.00018866,2]
[393246709,1762379432737,-160.0,0.0001925,2]
[393246712,1762379432746,-457.54385611,0.0001925,2]
[393246714,1762379432756,-643.902409,0.00020187,2]
[393246716,1762379432765,-512.96710891,0.00020471,2]
[393246718,1762379432774,-177.0,0.00020678,2]
[393246720,1762379432783,-457.54385611,0.00020893,3]
[393246722,1762379432793,-300.0,0.00021917,2]
[393246724,1762379432802,-410.21768499,0.00021918,2]
[393246726,1762379432812,-153.0,0.00021918,2]
[393246728,1762379432821,-153.0,0.00021918,2]
[393246730,1762379432830,-151.0,0.00021918,2]
[393246732,1762379432839,-253.11958384,0.00021918,2]
[393246734,1762379432849,-153.0,0.00021918,2]
[393246736,1762379432858,-151.0,0.00021918,2]
[393246738,1762379432867,-153.0,0.00021918,2]
[393246740,1762379432876,-153.0,0.00021918,2]
[393246742,1762379432885,-153.0,0.00021918,2]
[393246744,1762379432894,-153.0,0.00021918,2]
[393246746,1762379432903,-153.0,0.00021918,2]
[393246748,1762379432913,-153.0,0.00021918,2]
[393246750,1762379432922,-153.0,0.00021918,2]
[393246752,1762379432931,-153.0,0.00021918,2]
[393246754,1762379432940,-153.0,0.00021918,2]
[393246756,1762379432949,-153.0,0.00021918,2]
[393246758,1762379432959,-266.02854574,0.00021918,2]
[393246760,1762379432967,-153.0,0.00021918,2]
[393246762,1762379432976,-153.0,0.00021918,2]
[393246764,1762379432985,-500.0,0.00022,2]
[393246766,1762379432994,-500.0,0.00022267,2]
[393246768,1762379433003,-457.54385611,0.00022535,4]
[393246770,1762379433012,-204.0,0.00022678,2]
[393246772,1762379433026,-248.77165003,0.00022814,2]
[393246774,1762379433035,-500.0,0.00022814,2]
[393246776,1762379433044,-500.0,0.00022814,2]
[393246778,1762379433053,-234.72667749,0.00022814,2]
[393246779,1762379433063,-1000.0,0.00022815,2]
[393246782,1762379433072,-1500.0,0.00023363,2]
[393246784,1762379433081,-150.0,0.00023431,2]
[393246786,1762379433093,-412.0,0.00023543,2]
[393246788,1762379433103,-209.40437685,0.00023686,2]
[393246790,1762379433112,-420.0,0.00023818,2]
[393246792,1762379433121,-2000.0,0.00023911,2]
[393246793,1762379433130,-500.0,0.0002395,2]
[393246795,1762379433139,-457.54385611,0.00024177,5]
[393246797,1762379433148,-380.0,0.00024658,2]
[393246798,1762379433159,-231.0,0.00024678,2]
[393246812,1762379433309,-399.56292103,0.00025063,2]
[393246814,1762379433322,-500.0,0.00025065,2]
[393246816,1762379433336,-151.0,0.00025134,3]
[393246818,1762379433346,-150.0,0.00025561,2]
[393246820,1762379433360,-458.00139997,0.0002582,7]
[393246822,1762379433369,-587.0,0.00025885,2]
[393246824,1762379433379,-501.60103285,0.000263,2]
[393246826,1762379433388,-489.67,0.00026536,2]
[393246828,1762379433398,-412.0,0.00026543,2]
[393246830,1762379433408,-500.0,0.00026667,2]
[393246832,1762379433418,-643.902409,0.00026676,2]
[393246834,1762379433427,-258.0,0.00026678,2]
[393246836,1762379433436,-154.81315254,0.00027314,2]
[393246838,1762379433445,-39723.2516415,0.00027414,2]
[393246840,1762379433455,-428.1123311,0.00027414,2]
[393246842,1762379433464,-654.3481902,0.00027414,2]
[393246844,1762379433474,-150.0,0.00027691,2]
[393246846,1762379433483,-112594.88018518,0.00028042,2]
[393246848,1762379433492,-292.46,0.00028042,2]
[393246850,1762379433501,-1372.6315018,0.00028084,2]
[393246852,1762379433510,-823.0,0.0002813,2]
[393246854,1762379433520,-430322.066994,0.00028142,2]
[393246856,1762379433529,-20282.819758,0.00028142,2]
[393246858,1762379433538,-259589.05453981,0.00028152,2]
[393246860,1762379433550,-2657.7,0.00028152,2]
[393246902,1762379438468,-600.0,0.00028152,2]
[393246910,1762379438527,-4500.0,0.00028152,2]
[393246912,1762379438539,-1618.48555285,0.00028152,2]
[393246913,1762379438550,-2865.89370858,0.00028152,2]
[393246976,1762379440677,-564.6309163,0.00028152,2]
[393246978,1762379440688,-5110.61782811,0.00028152,2]
[393246980,1762379440741,-53426.08103208,0.00028152,2]
[393247137,1762379443925,-42132.38176249,0.00028152,2]
[393247163,1762379447038,-15108.28249,0.00028152,2]
[393247164,1762379447095,-5975.82000006,0.00028152,2]
[393247194,1762379845464,5000.0,0.000191,9]
[393247259,1762380631715,-219.05769464,0.00018322,2]
[393247261,1762380631725,-42.96334057,0.00018507,2]
[393247272,1762380631829,-176.09435407,0.00018507,2]
[393247275,1762380631838,-286.16829707,0.00018607,2]
[393247277,1762380631847,-247.91114888,0.000187,2]
[393247279,1762380631858,-9.84831255,0.000187,2]
[393247281,1762380631867,-257.0,0.00019008,2]
[393247282,1762380631876,-315.0640354,0.0001925,2]
[393247284,1762380631885,-117.88765205,0.00022535,4]
[393247394,1762380639896,-197.17638335,0.00022535,4]
[393247395,1762380639906,-412.0,0.00023845,2]
[393247396,1762380639915,-1000.0,0.00024244,30]